fUSD/lending_fUSD_20250505
["ID","MTS","AMOUNT","RATE_DAILY","PERIOD"]
[359940288,1746441036335,-151.0,0.00019998,2]
[359940289,1746441036344,-450.0,0.00019998,2]
[359940290,1746441036354,-5054.84,0.00019998,2]
[359940291,1746441036363,-450.0,0.00019998,2]
[359940292,1746441036373,-541.22,0.00019998,2]
[359940293,1746441036383,-585.23,0.00019998,2]
[359940294,1746441036393,-450.0,0.00019998,2]
[359940295,1746441036402,-462.32318451,0.00019998,2]
[359940296,1746441036522,-450.0,0.00019998,2]
[359940297,1746441036546,-450.0,0.00019998,2]
[359940298,1746441036555,-450.0,0.00019998,2]
[359940299,1746441036565,-465.49108955,0.00019998,2]
[359940300,1746441036575,-450.0,0.00019998,2]
[359940301,1746441036585,-450.0,0.00019998,2]
[359940302,1746441036596,-450.0,0.00019998,2]
[359940303,1746441036606,-450.0,0.00019998,2]
[359940304,1746441036616,-450.0,0.00019998,2]
[359940305,1746441036626,-1000.35,0.00019998,2]
[359940306,1746441036635,-458.71546583,0.00019998,2]
[359940307,1746441036645,-450.0,0.00019998,2]
[359940308,1746441036654,-450.0,0.00019998,2]
[359940309,1746441036664,-450.0,0.00019998,2]
[359940310,1746441036673,-450.0,0.00019998,2]
[359940311,1746441036683,-465.5150764,0.00019998,2]
[359940312,1746441036693,-450.0,0.00019998,2]
[359940313,1746441036702,-450.0,0.00019998,2]
[359940314,1746441036713,-548.01480409,0.00019998,2]
[359940315,1746441036723,-450.0,0.00019998,2]
[359940316,1746441036733,-608.64,0.00019998,2]
[359940317,1746441036741,-450.0,0.00019998,2]
[359940318,1746441036750,-488.48,0.00019998,2]
[359940319,1746441036760,-450.0,0.00019998,2]
[359940320,1746441036769,-450.0,0.00019998,2]
[359940321,1746441036778,-450.0,0.00019998,2]
[359940322,1746441036788,-450.0,0.00019998,2]
[359940323,1746441036797,-450.0,0.00019998,2]
[359940324,1746441036806,-3408.92927484,0.00019999,2]
[359940325,1746441036817,-10396.07950461,0.00019999,7]
[359940326,1746441036828,-993.0623,0.00019999,2]
[359940327,1746441036839,-450.0,0.00019999,2]
[359940328,1746441036849,-450.0,0.00019999,2]
[359940329,1746441036858,-450.0,0.00019999,2]
[359940330,1746441036868,-450.0,0.00019999,2]
[359940331,1746441036879,-450.0,0.00019999,2]
[359940332,1746441036889,-450.0,0.00019999,2]
[359940333,1746441036898,-450.0,0.00019999,2]
[359940334,1746441036907,-450.0,0.00019999,2]
[359940335,1746441036917,-450.0,0.00019999,2]
[359940336,1746441036926,-450.0,0.00019999,2]
[359940337,1746441036935,-450.0,0.00019999,2]
[359940338,1746441036945,-450.0,0.00019999,2]
[359940339,1746441036954,-450.0,0.00019999,2]
[359940340,1746441036964,-450.0,0.00019999,2]
[359940341,1746441036973,-450.0,0.00019999,2]
[359940342,1746441036982,-450.0,0.00019999,2]
[359940343,1746441036992,-450.0,0.00019999,2]
[359940344,1746441037001,-450.0,0.00019999,2]
[359940345,1746441037011,-450.0,0.00019999,2]
[359940346,1746441037020,-450.0,0.00019999,2]
[359940347,1746441037029,-162.45792,0.00019999,2]
[359940348,1746441037039,-168.87332167,0.00019999,2]
[359940349,1746441037049,-450.0,0.00019999,2]
[359940350,1746441037058,-450.0,0.00019999,2]
[359940351,1746441037067,-450.0,0.00019999,2]
[359940352,1746441037077,-450.0,0.00019999,2]
[359940353,1746441037086,-450.0,0.00019999,2]
[359940354,1746441037095,-450.0,0.00019999,2]
[359940355,1746441037105,-450.0,0.00019999,2]
[359940356,1746441037114,-375.12,0.00019999,2]
[359940357,1746441037123,-464.83082587,0.00019999,2]
[359940358,1746441037133,-522.45,0.00019999,2]
[359940359,1746441037142,-186.42,0.00019999,2]
[359940360,1746441037151,-577.74,0.00019999,2]
[359940361,1746441037161,-151.0,0.00019999,2]
[359940362,1746441037170,-151.0,0.00019999,2]
[359940363,1746441037179,-183.5838,0.00019999,2]
[359940364,1746441037188,-214.1,0.00019999,2]
[359940365,1746441037197,-518.96721504,0.00019999,2]
[359940366,1746441037207,-450.0,0.00019999,2]
[359940367,1746441037216,-386.04,0.00019999,2]
[359940368,1746441037225,-425.81,0.00019999,2]
[359940369,1746441037234,-500.0,0.00019999,2]
[359940370,1746441037244,-450.0,0.00019999,2]
[359940371,1746441037254,-450.0,0.00019999,2]
[359940372,1746441037264,-216.34,0.00019999,2]
[359940373,1746441037274,-179.32,0.00019999,2]
[359940374,1746441037283,-13285.77,0.00019999,2]
[359940375,1746441037292,-13285.77,0.00019999,2]
[359940376,1746441037302,-13285.77,0.00019999,2]
[359940377,1746441037312,-13285.77,0.00019999,2]
[359940378,1746441037322,-13285.77,0.00019999,2]
[359940379,1746441037331,-13285.77,0.00019999,2]
[359940380,1746441037341,-13285.77,0.00019999,2]
[359940381,1746441037351,-13285.77,0.00019999,2]
[359940382,1746441037361,-13285.77,0.00019999,2]
[359940383,1746441037370,-13285.77,0.00019999,2]
[359940384,1746441037380,-13285.77,0.00019999,2]
[359940385,1746441037389,-13285.77,0.00019999,2]
[359940386,1746441037398,-13285.77,0.00019999,2]
[359940387,1746441037407,-13285.77,0.00019999,2]
[359940388,1746441037416,-13285.77,0.00019999,2]
[359940389,1746441037426,-13285.77,0.00019999,2]
[359940390,1746441037435,-13285.77,0.00019999,2]
[359940391,1746441037444,-13285.77,0.00019999,2]
[359940392,1746441037453,-13285.77,0.00019999,2]
[359940393,1746441037463,-13285.77,0.00019999,2]
[359940394,1746441037473,-7255.32252252,0.00019999,2]
[359940395,1746441037707,-211.41992749,0.00019998,2]
[359940396,1746441037717,-190.3535087,0.00019998,2]
[359940397,1746441037726,-176.22853201,0.00019998,2]
[359940398,1746441037735,-142.0380318,0.00019999,2]
[359940399,1746441037746,-2326.43831506,0.00019999,2]
[359940400,1746441037803,-500.0,0.00019998,2]
[359940401,1746441037814,-111.7482,0.00019998,2]
[359940403,1746441038293,-196.80476314,0.000199,2]
[359940404,1746441038306,-81.26901911,0.00019998,2]
[359940405,1746441038316,-415.30551153,0.00019998,2]
[359940406,1746441038326,-68.01982673,0.00019998,2]
[359940407,1746441038389,-431.98017327,0.00019998,2]
[359940408,1746441038400,-131.96835525,0.00019998,2]
[359940409,1746441038415,-318.03164475,0.00019998,2]
[359940410,1746441038427,-393.40960925,0.00019998,2]
[359940411,1746441038440,-106.59039075,0.00019998,2]
[359940412,1746441038450,-500.0,0.00019998,2]
[359940413,1746441038463,-500.0,0.00019998,2]
[359940414,1746441038473,-500.0,0.00019998,2]
[359940415,1746441038484,-122.05960925,0.00019998,2]
[359940563,1746441040438,-284.672388,0.00019998,2]
[359940581,1746441040699,-93.26800275,0.00019998,2]
[359940583,1746441040709,-500.0,0.00019998,2]
[359940585,1746441040720,-111.60001146,0.00019998,2]
[359940650,1746441043427,-388.39998854,0.00019998,2]
[359940651,1746441043438,-450.0,0.00019998,2]
[359940652,1746441043449,-550.37,0.00019998,2]
[359940653,1746441043459,-450.0,0.00019998,2]
[359940654,1746441043470,-412.42072499,0.00019998,2]
[359940655,1746441043483,-37.57927501,0.00019998,2]
[359940656,1746441043494,-3561.97113062,0.00019999,2]
[359940657,1746441043504,-500.0,0.00019999,2]
[359940658,1746441043515,-13285.77,0.00019999,2]
[359940659,1746441043527,-13286.00306194,0.00019999,2]
[359940660,1746441043538,-472.65,0.00019999,2]
[359940661,1746441043548,-226.85,0.00019999,2]
[359940662,1746441043559,-500.0,0.00019999,2]
[359940663,1746441043570,-500.0,0.00019999,2]
[359940664,1746441043581,-500.0,0.00019999,2]
[359940665,1746441043592,-500.0,0.00019999,2]
[359940666,1746441043603,-500.0,0.00019999,2]
[359940667,1746441043613,-500.0,0.00019999,2]
[359940668,1746441043624,-500.0,0.00019999,2]
[359940669,1746441043635,-500.0,0.00019999,2]
[359940670,1746441043646,-500.0,0.00019999,2]
[359940672,1746441043656,-500.0,0.00019999,2]
[359940674,1746441043667,-500.0,0.00019999,2]
[359940675,1746441043678,-292.15,0.00019999,2]
[359940676,1746441043690,-4058.45760969,0.00019999,2]
[359940677,1746441043703,-442.5,0.00019999,2]
[359940685,1746441047176,-450.0,0.00019998,2]
[359940686,1746441047185,-3730.0,0.00019999,2]
[359940687,1746441047197,-399.62778986,0.00019999,2]
[359940688,1746441047209,-963.37,0.00019999,2]
[359940690,1746441047221,-3083.1519451,0.00019999,2]
[359940691,1746441047234,-1077.28919184,0.00019999,2]
[359940692,1746441047244,-450.0,0.00019999,2]
[359940693,1746441047253,-249.11,0.00019999,2]
[359940694,1746441047265,-405.7,0.00019999,2]
[359940695,1746441047274,-450.0,0.00019999,2]
[359940696,1746441047283,-498.5,0.00019999,2]
[359940697,1746441047292,-450.0,0.00019999,2]
[359940698,1746441047302,-450.0,0.00019999,2]
[359940699,1746441047311,-450.0,0.00019999,2]
[359940700,1746441047320,-199.73531157,0.00019999,2]
[359940701,1746441047329,-450.0,0.00019999,2]
[359940702,1746441047338,-195.05,0.00019999,2]
[359940703,1746441047348,-173.37,0.00019999,2]
[359940704,1746441047358,-404.79,0.00019999,2]
[359940705,1746441047367,-209.59,0.00019999,2]
[359940706,1746441047377,-450.0,0.00019999,2]
[359940707,1746441047387,-450.0,0.00019999,2]
[359940708,1746441047396,-450.0,0.00019999,2]
[359940709,1746441047405,-450.0,0.00019999,2]
[359940710,1746441047414,-450.0,0.00019999,2]
[359940711,1746441047424,-450.0,0.00019999,2]
[359940712,1746441047433,-450.0,0.00019999,2]
[359940713,1746441047442,-414.6,0.00019999,2]
[359940714,1746441047451,-450.0,0.00019999,2]
[359940715,1746441047461,-450.0,0.00019999,2]
[359940716,1746441047471,-450.0,0.00019999,2]
[359940717,1746441047480,-450.0,0.00019999,2]
[359940718,1746441047490,-450.0,0.00019999,2]
[359940719,1746441047499,-450.0,0.00019999,2]
[359940720,1746441047508,-151.24,0.00019999,2]
[359940721,1746441047517,-450.0,0.00019999,2]
[359940722,1746441047527,-450.0,0.00019999,2]
[359940723,1746441047536,-450.0,0.00019999,2]
[359940724,1746441047546,-340.80477403,0.00019999,2]
[359940725,1746441047559,-244.84140699,0.00019999,2]
[359940726,1746441047568,-36.15859301,0.00019999,2]
[359940727,1746441047579,-538.37140699,0.00019999,2]
[359940728,1746441047588,-450.0,0.00019999,2]
[359940729,1746441047598,-336.9,0.00019999,2]
[359940730,1746441047607,-450.0,0.00019999,2]
[359940731,1746441047617,-450.0,0.00019999,2]
[359940732,1746441047627,-450.0,0.00019999,2]
[359940733,1746441047637,-450.0,0.00019999,2]
[359940734,1746441047646,-340.28,0.00019999,2]
[359940735,1746441047656,-255.44,0.00019999,2]
[359940736,1746441047666,-133.12018247,0.00019999,2]
[359940739,1746441051965,1016.0,0.000194,2]
[359940740,1746441156155,292.92,0.00017651,2]
[359940741,1746441204125,2865.73,0.00027397,120]
[359940763,1746441616438,151.38574547,0.00030136,120]
[359940771,1746441664235,200.0,0.00018977,2]
[359940772,1746441675628,417.93,0.0001898,2]
[359940773,1746441675847,417.93,0.00018985,2]
[359940774,1746441676247,417.93,0.0001899,2]
[359940775,1746441676501,170.35712281,0.00018995,2]
[359940776,1746441676524,247.57287719,0.00018995,2]
[359940777,1746441676752,417.93,0.00019,2]
[359940778,1746441676964,417.93,0.00019005,2]
[359940779,1746441677153,417.93,0.0001901,2]
[359940780,1746441677374,417.93,0.00019015,2]
[359940781,1746441677613,417.93,0.0001902,2]
[359940782,1746441677817,417.93,0.00019025,2]
[359940783,1746441678023,417.93,0.0001903,2]
[359940784,1746441678221,417.93,0.00019035,2]
[359940785,1746441678475,417.93,0.0001904,2]
[359940786,1746441678697,417.93,0.00019045,2]
[359940787,1746441678915,417.93,0.0001905,2]
[359940788,1746441679119,417.93,0.00019055,2]
[359940789,1746441679354,417.93,0.0001906,2]
[359940790,1746441679762,417.93,0.00019065,2]
[359940791,1746441679964,417.93,0.0001907,2]
[359940792,1746441680182,417.93,0.00019075,2]
[359940795,1746441707942,150.050519,0.0003,30]
[359940798,1746441713164,150.050519,0.0003,31]
[359940802,1746441717578,150.050519,0.0003,32]
[359940803,1746441725027,150.050519,0.0003,33]
[359940804,1746441751520,312.83226847,0.00030136,120]
[359940805,1746441757926,-152.0,0.000196,2]
[359940822,1746442139693,1000.0,0.00018961,2]
[359940835,1746442169642,230.2291601,0.0003,30]
[359940838,1746442200057,316.42,0.00017048,2]
[359940839,1746442200287,316.42,0.00019312,2]
[359940855,1746442232315,-864.0,0.000196,2]
[359940858,1746442232326,-200.0,0.000197,2]
[359940861,1746442232335,-90.55713743,0.00019799,2]
[359940876,1746442232475,-123.53280877,0.00019799,2]
[359940877,1746442232484,-1016.0,0.000198,2]
[359940878,1746442232494,-207.4,0.00019827,2]
[359940879,1746442232504,-2000.0,0.00019839,2]
[359940880,1746442232513,-200.0,0.00019839,2]
[359940881,1746442232523,-876.40355819,0.00019896,2]
[359940882,1746442232631,-323.59644181,0.00019896,2]
[359940883,1746442232640,-1930.9418,0.00019897,2]
[359940884,1746442232649,-300.0,0.00019897,2]
[359940885,1746442232659,-248.26468325,0.00019898,2]
[359940886,1746442232668,-248.26468324,0.00019898,2]
[359940887,1746442232677,-248.26468324,0.00019898,2]
[359940888,1746442232687,-248.26468324,0.00019899,2]
[359940889,1746442232696,-248.26468324,0.00019899,2]
[359940890,1746442232706,-225.68268607,0.00019899,2]
[359940891,1746442232715,-549.84707901,0.00019899,2]
[359940892,1746442232725,-248.26468324,0.00019899,2]
[359940893,1746442232735,-549.84707901,0.00019899,2]
[359940894,1746442232744,-248.26468324,0.00019899,2]
[359940895,1746442232753,-549.84707901,0.000199,2]
[359940896,1746442232763,-248.26468324,0.000199,2]
[359940897,1746442232773,-549.84707901,0.000199,2]
[359940898,1746442232783,-248.26468324,0.000199,2]
[359940899,1746442232793,-834.1090273,0.000199,2]
[359940901,1746442232804,-549.84707901,0.000199,2]
[359940903,1746442232814,-306.48353203,0.000199,2]
[359940905,1746442232823,-248.26468324,0.000199,2]
[359940907,1746442232834,-514.65026319,0.00019973,2]
[359940909,1746442232843,-500.0,0.00019973,2]
[359940911,1746442232854,-500.0,0.00019973,2]
[359940913,1746442232865,-500.0,0.00019973,2]
[359940915,1746442232875,-501.04843904,0.00019973,2]
[359940917,1746442232884,-500.0,0.00019973,2]
[359940919,1746442232895,-500.0,0.00019973,2]
[359940921,1746442232905,-500.0,0.00019973,2]
[359940925,1746442232915,-500.0,0.00019973,2]
[359940928,1746442232925,-500.0,0.00019973,2]
[359940929,1746442232935,-668.65185757,0.00019985,2]
[359940931,1746442232946,-151.0,0.00019985,2]
[359940933,1746442232955,-4625.43886069,0.00019987,2]
[359940935,1746442232964,-1098.095,0.00019988,2]
[359940937,1746442232974,-188.542,0.00019988,2]
[359940939,1746442232983,-362487.34551335,0.00019994,2]
[359940942,1746442232995,-10302.9628332,0.00019994,2]
[359940944,1746442233007,-911.57,0.00019994,2]
[359941117,1746442238644,-11117.76695138,0.00019994,2]
[359941118,1746442238695,-406.74294083,0.00019994,2]
[359941120,1746442238707,-542.07531661,0.00019994,2]
[359941157,1746442239368,250.0,0.00017,2]
[359941228,1746442240350,300.0,0.00019,2]
[359941268,1746442240736,-1473.91965476,0.00019994,2]
[359941275,1746442240791,-2613.2318764,0.00019994,2]
[359941572,1746442243721,-496.35963847,0.000199,2]
[359941573,1746442243731,-263828.33800425,0.00019994,2]
[359941574,1746442243740,-500.0,0.00019996,2]
[359941575,1746442243750,-500.0,0.00019996,2]
[359941576,1746442243760,-500.0,0.00019996,2]
[359941577,1746442243769,-500.0,0.00019996,2]
[359941578,1746442243779,-500.0,0.00019996,2]
[359941579,1746442243789,-500.0,0.00019996,2]
[359941580,1746442243799,-500.0,0.00019996,2]
[359941581,1746442243808,-500.0,0.00019996,2]
[359941582,1746442243818,-500.0,0.00019996,2]
[359941583,1746442243827,-500.0,0.00019996,2]
[359941584,1746442243837,-500.0,0.00019996,2]
[359941585,1746442243851,-500.0,0.00019996,2]
[359941587,1746442243862,-500.0,0.00019996,2]
[359941588,1746442243873,-500.0,0.00019996,2]
[359941589,1746442243883,-500.0,0.00019996,2]
[359941590,1746442243894,-500.0,0.00019996,2]
[359941591,1746442243904,-500.0,0.00019996,2]
[359941592,1746442243916,-500.0,0.00019996,2]
[359941593,1746442243925,-500.0,0.00019996,2]
[359941594,1746442243934,-500.0,0.00019996,2]
[359941596,1746442243944,-500.0,0.00019996,2]
[359941597,1746442243954,-500.0,0.00019996,2]
[359941598,1746442243963,-500.0,0.00019996,2]
[359941599,1746442243973,-500.0,0.00019996,2]
[359941600,1746442243983,-500.0,0.00019996,2]
[359941601,1746442243992,-500.0,0.00019996,2]
[359941602,1746442244002,-500.0,0.00019996,2]
[359941603,1746442244014,-500.0,0.00019996,2]
[359941604,1746442244024,-500.0,0.00019996,2]
[359941605,1746442244033,-500.0,0.00019996,2]
[359941606,1746442244043,-500.0,0.00019996,2]
[359941607,1746442244052,-500.0,0.00019996,2]
[359941608,1746442244062,-500.0,0.00019996,2]
[359941609,1746442244071,-500.0,0.00019996,2]
[359941610,1746442244081,-500.0,0.00019996,2]
[359941611,1746442244092,-520.58797268,0.00019996,2]
[359941612,1746442244101,-280.0653303,0.00019996,2]
[359941613,1746442244110,-500.0,0.00019996,2]
[359941614,1746442244119,-500.0,0.00019996,2]
[359941615,1746442244129,-500.0,0.00019996,2]
[359941616,1746442244138,-500.0,0.00019996,2]
[359941617,1746442244148,-500.0,0.00019996,2]
[359941618,1746442244158,-200.0,0.00019996,2]
[359941619,1746442244169,-1019.79440952,0.00019996,2]
[359941620,1746442244178,-1019.79440952,0.00019996,2]
[359941621,1746442244188,-1019.79440952,0.00019996,2]
[359941622,1746442244197,-1019.79440952,0.00019996,2]
[359941623,1746442244207,-1019.79440952,0.00019996,2]
[359941624,1746442244217,-1019.79440952,0.00019996,2]
[359941625,1746442244226,-1019.79440952,0.00019996,2]
[359941626,1746442244235,-1019.79440952,0.00019996,2]
[359941627,1746442244245,-1019.79440952,0.00019996,2]
[359941628,1746442244254,-1019.79440952,0.00019996,2]
[359941629,1746442244264,-1019.79440952,0.00019996,2]
[359941631,1746442244274,-1019.79440952,0.00019996,2]
[359941633,1746442244283,-1019.79440952,0.00019996,2]
[359941635,1746442244293,-1019.79440952,0.00019996,2]
[359941637,1746442244303,-1019.79440952,0.00019996,2]
[359941639,1746442244312,-1019.79440952,0.00019996,2]
[359941641,1746442244322,-1019.79440952,0.00019996,2]
[359941642,1746442244331,-1019.79440952,0.00019996,2]
[359941644,1746442244341,-1019.79440952,0.00019996,2]
[359941645,1746442244350,-1019.79440952,0.00019996,2]
[359941646,1746442244360,-1019.79440952,0.00019996,2]
[359941647,1746442244369,-1019.79440952,0.00019996,2]
[359941648,1746442244379,-1019.79440952,0.00019996,2]
[359941649,1746442244388,-1019.79440952,0.00019996,2]
[359941650,1746442244398,-1019.79440952,0.00019996,2]
[359941651,1746442244408,-1019.79440952,0.00019996,2]
[359941652,1746442244419,-1019.79440952,0.00019996,2]
[359941653,1746442244429,-1019.79440952,0.00019996,2]
[359941654,1746442244438,-1019.79440952,0.00019996,2]
[359941655,1746442244448,-1019.79440952,0.00019996,2]
[359941656,1746442244458,-1019.79440952,0.00019996,2]
[359941657,1746442244468,-1019.79440952,0.00019996,2]
[359941658,1746442244477,-1019.79440952,0.00019996,2]
[359941659,1746442244487,-1019.79440952,0.00019996,2]
[359941660,1746442244496,-1019.79440952,0.00019996,2]
[359941661,1746442244507,-1019.79440952,0.00019996,2]
[359941662,1746442244516,-1019.79440952,0.00019996,2]
[359941663,1746442244525,-450.0,0.00019997,2]
[359941664,1746442244534,-470.50256753,0.00019997,2]
[359941666,1746442244543,-450.0,0.00019997,2]
[359941667,1746442244553,-450.0,0.00019997,2]
[359941668,1746442244562,-450.0,0.00019997,2]
[359941669,1746442244572,-450.0,0.00019997,2]
[359941670,1746442244581,-464.54825935,0.00019997,2]
[359941671,1746442244590,-450.0,0.00019997,2]
[359941672,1746442244600,-450.0,0.00019997,2]
[359941673,1746442244609,-450.0,0.00019997,2]
[359941674,1746442244619,-450.0,0.00019997,2]
[359941675,1746442244629,-478.25309294,0.00019997,2]
[359941676,1746442244638,-450.0,0.00019997,2]
[359941677,1746442244648,-450.0,0.00019997,2]
[359941678,1746442244657,-516.77,0.00019997,2]
[359941679,1746442244670,-450.0,0.00019997,2]
[359941680,1746442244680,-479.64228365,0.00019997,2]
[359941681,1746442244689,-450.0,0.00019997,2]
[359941682,1746442244699,-497.35,0.00019997,2]
[359941683,1746442244712,-450.0,0.00019997,2]
[359941684,1746442244721,-464.20793038,0.00019997,2]
[359941685,1746442244734,-450.0,0.00019997,2]
[359941686,1746442244744,-155.60968598,0.00019997,2]
[359941687,1746442244755,-465.23860558,0.00019997,2]
[359941688,1746442244765,-450.0,0.00019997,2]
[359941689,1746442244776,-450.0,0.00019997,2]
[359941690,1746442244786,-450.0,0.00019997,2]
[359941691,1746442244795,-165.27532964,0.00019997,2]
[359941692,1746442244805,-450.0,0.00019997,2]
[359941693,1746442244814,-450.0,0.00019997,2]
[359941694,1746442244823,-460.0853658,0.00019997,2]
[359941695,1746442244833,-450.0,0.00019997,2]
[359941696,1746442244842,-450.0,0.00019997,2]
[359941697,1746442244852,-462.20981104,0.00019997,2]
[359941698,1746442244863,-450.0,0.00019997,2]
[359941699,1746442244873,-450.0,0.00019997,2]
[359941700,1746442244884,-450.0,0.00019997,2]
[359941701,1746442244895,-450.0,0.00019997,2]
[359941702,1746442244905,-450.0,0.00019997,2]
[359941703,1746442244919,-450.0,0.00019997,2]
[359941704,1746442244928,-450.0,0.00019997,2]
[359941705,1746442244937,-450.0,0.00019997,2]
[359941706,1746442244948,-450.0,0.00019997,2]
[359941707,1746442244958,-450.0,0.00019997,2]
[359941708,1746442244968,-450.0,0.00019997,2]
[359941709,1746442244978,-450.0,0.00019997,2]
[359941710,1746442244987,-450.0,0.00019997,2]
[359941711,1746442244997,-450.0,0.00019997,2]
[359941712,1746442245007,-450.0,0.00019997,2]
[359941713,1746442245016,-450.0,0.00019997,2]
[359941714,1746442245025,-450.0,0.00019997,2]
[359941715,1746442245035,-450.0,0.00019997,2]
[359941716,1746442245045,-450.0,0.00019997,2]
[359941717,1746442245054,-450.0,0.00019997,2]
[359941718,1746442245063,-450.0,0.00019997,2]
[359941719,1746442245073,-450.0,0.00019997,2]
[359941720,1746442245082,-450.0,0.00019997,2]
[359941721,1746442245091,-450.0,0.00019997,2]
[359941722,1746442245100,-490.18772966,0.00019997,2]
[359941723,1746442245109,-450.0,0.00019997,2]
[359941724,1746442245119,-450.0,0.00019997,2]
[359941725,1746442245128,-450.0,0.00019997,2]
[359941726,1746442245137,-450.0,0.00019997,2]
[359941727,1746442245147,-450.0,0.00019997,2]
[359941728,1746442245156,-450.0,0.00019997,2]
[359941729,1746442245166,-450.0,0.00019997,2]
[359941730,1746442245175,-450.0,0.00019997,2]
[359941731,1746442245184,-450.0,0.00019997,2]
[359941732,1746442245194,-450.0,0.00019997,2]
[359941733,1746442245203,-450.0,0.00019997,2]
[359941734,1746442245213,-450.0,0.00019997,2]
[359941735,1746442245225,-450.0,0.00019997,2]
[359941736,1746442245237,-450.0,0.00019997,2]
[359941737,1746442245247,-215.83,0.00019997,2]
[359941738,1746442245256,-577.56365134,0.00019997,2]
[359941739,1746442245265,-525.61,0.00019997,2]
[359941740,1746442245274,-450.0,0.00019997,2]
[359941741,1746442245284,-450.0,0.00019997,2]
[359941742,1746442245293,-450.0,0.00019997,2]
[359941743,1746442245302,-450.0,0.00019997,2]
[359941744,1746442245311,-450.0,0.00019997,2]
[359941745,1746442245320,-450.0,0.00019997,2]
[359941746,1746442245329,-450.0,0.00019997,2]
[359941747,1746442245338,-450.0,0.00019997,2]
[359941748,1746442245347,-450.0,0.00019997,2]
[359941749,1746442245356,-521.01,0.00019997,2]
[359941750,1746442245365,-450.0,0.00019997,2]
[359941751,1746442245374,-450.0,0.00019997,2]
[359941752,1746442245383,-450.0,0.00019997,2]
[359941753,1746442245393,-450.0,0.00019997,2]
[359941754,1746442245403,-450.0,0.00019997,2]
[359941755,1746442245412,-450.0,0.00019997,2]
[359941756,1746442245422,-465.59,0.00019997,2]
[359941757,1746442245431,-450.0,0.00019997,2]
[359941758,1746442245441,-450.0,0.00019997,2]
[359941759,1746442245451,-450.0,0.00019997,2]
[359941760,1746442245460,-450.0,0.00019997,2]
[359941761,1746442245471,-450.0,0.00019997,2]
[359941762,1746442245480,-450.0,0.00019997,2]
[359941763,1746442245490,-450.0,0.00019997,2]
[359941764,1746442245499,-450.0,0.00019997,2]
[359941765,1746442245509,-450.0,0.00019997,2]
[359941766,1746442245519,-150.0,0.00019997,2]
[359941767,1746442245528,-395.61,0.00019997,2]
[359941768,1746442245538,-150.0,0.00019997,2]
[359941769,1746442245548,-150.0,0.00019997,2]
[359941770,1746442245558,-450.0,0.00019997,2]
[359941771,1746442245567,-150.0,0.00019997,2]
[359941772,1746442245577,-150.0,0.00019997,2]
[359941773,1746442245587,-222.40857925,0.00019997,2]
[359941774,1746442245596,-150.0,0.00019997,2]
[359941775,1746442245605,-450.0,0.00019997,2]
[359941776,1746442245614,-450.0,0.00019997,2]
[359941777,1746442245623,-450.0,0.00019997,2]
[359941778,1746442245634,-454.16,0.00019997,2]
[359941779,1746442245643,-207.91,0.00019997,2]
[359941780,1746442245652,-466.53504923,0.00019997,2]
[359941781,1746442245664,-450.0,0.00019997,2]
[359941782,1746442245678,-586.82018184,0.00019997,2]